fUST/lending_fUST_20250928
["ID","MTS","AMOUNT","RATE_DAILY","PERIOD"]
[388054125,1758994274218,-480.0,0.00036438,9]
[388054126,1758994274227,-480.0,0.00036438,9]
[388054127,1758994274236,-742.65,0.00036438,9]
[388054128,1758994274245,-480.0,0.00036438,9]
[388054129,1758994274254,-480.0,0.00036438,9]
[388054130,1758994274263,-480.0,0.00036438,9]
[388054131,1758994274273,-480.0,0.00036438,9]
[388054132,1758994274283,-480.0,0.00036438,9]
[388054133,1758994274292,-480.0,0.00036438,9]
[388054134,1758994274302,-480.0,0.00036438,9]
[388054135,1758994274311,-480.0,0.00036438,9]
[388054136,1758994274320,-480.0,0.00036438,9]
[388054137,1758994274330,-789.69,0.00036438,9]
[388054138,1758994274340,-480.0,0.00036438,9]
[388054139,1758994274350,-480.0,0.00036438,9]
[388054140,1758994274360,-480.0,0.00036438,9]
[388054141,1758994274371,-833.25,0.00036438,9]
[388054142,1758994274381,-417.69305852,0.00036438,9]
[388054143,1758994274391,-480.0,0.00036438,9]
[388054144,1758994274400,-501.2446162,0.00036438,9]
[388054145,1758994274410,-480.0,0.00036438,9]
[388054146,1758994274420,-480.0,0.00036438,9]
[388054147,1758994274430,-480.0,0.00036438,9]
[388054148,1758994274441,-480.0,0.00036438,9]
[388054149,1758994274451,-480.0,0.00036438,9]
[388054150,1758994274461,-480.0,0.00036438,9]
[388054151,1758994274471,-480.0,0.00036438,9]
[388054152,1758994274481,-793.85,0.00036438,9]
[388054153,1758994274491,-480.0,0.00036438,9]
[388054154,1758994274499,-480.0,0.00036438,9]
[388054155,1758994274509,-480.0,0.00036438,9]
[388054156,1758994274522,-480.0,0.00036438,9]
[388054157,1758994274533,-480.0,0.00036438,9]
[388054158,1758994274542,-480.0,0.00036438,9]
[388054159,1758994274552,-206.52444063,0.00036438,9]
[388054160,1758994274562,-480.0,0.00036438,9]
[388054161,1758994274571,-480.0,0.00036438,9]
[388054162,1758994274580,-495.39724714,0.00036438,9]
[388054163,1758994274590,-653.79,0.00036438,9]
[388054164,1758994274599,-480.0,0.00036438,9]
[388054165,1758994274610,-480.0,0.00036438,9]
[388054166,1758994274619,-579.13,0.00036438,9]
[388054167,1758994274629,-480.0,0.00036438,9]
[388054168,1758994274640,-480.0,0.00036438,9]
[388054169,1758994274653,-480.0,0.00036438,9]
[388054170,1758994274677,-620.25,0.00036438,9]
[388054171,1758994274697,-480.0,0.00036438,9]
[388054172,1758994274716,-2059.03,0.00036438,9]
[388054173,1758994274737,-480.0,0.00036438,9]
[388054174,1758994274756,-1268.43,0.00036438,9]
[388054175,1758994274775,-480.0,0.00036438,9]
[388054176,1758994274793,-374.45851769,0.00036438,9]
[388054177,1758994274808,-480.0,0.00036438,9]
[388054178,1758994274827,-606.29,0.00036438,9]
[388054179,1758994274846,-480.0,0.00036438,9]
[388054180,1758994274864,-480.0,0.00036438,9]
[388054181,1758994274879,-480.0,0.00036438,9]
[388054182,1758994274898,-1560.16,0.00036438,9]
[388054183,1758994274915,-1351.46,0.00036438,9]
[388054184,1758994274930,-480.0,0.00036438,9]
[388054185,1758994274945,-516.73,0.00036438,9]
[388054186,1758994274959,-480.0,0.00036438,9]
[388054187,1758994274973,-480.0,0.00036438,9]
[388054188,1758994274988,-480.0,0.00036438,9]
[388054189,1758994275003,-480.0,0.00036438,9]
[388054190,1758994275018,-480.0,0.00036438,9]
[388054191,1758994275033,-1843.25,0.00036438,9]
[388054192,1758994275048,-842.63,0.00036438,9]
[388054193,1758994275062,-693.7,0.00036438,9]
[388054194,1758994275078,-1170.81,0.00036438,9]
[388054195,1758994275092,-480.0,0.00036438,9]
[388054196,1758994275108,-480.0,0.00036438,9]
[388054197,1758994275123,-519.15,0.00036438,9]
[388054198,1758994275138,-480.0,0.00036438,9]
[388054199,1758994275153,-480.0,0.00036438,9]
[388054200,1758994275168,-551.54,0.00036438,9]
[388054201,1758994275182,-480.0,0.00036438,9]
[388054202,1758994275197,-480.0,0.00036438,9]
[388054203,1758994275214,-801.56,0.00036438,9]
[388054204,1758994275228,-480.0,0.00036438,9]
[388054205,1758994275242,-480.0,0.00036438,9]
[388054206,1758994275256,-480.0,0.00036438,9]
[388054207,1758994275271,-611.79,0.00036438,9]
[388054208,1758994275286,-480.0,0.00036438,9]
[388054209,1758994275301,-480.0,0.00036438,9]
[388054210,1758994275316,-480.0,0.00036438,9]
[388054211,1758994275331,-480.0,0.00036438,9]
[388054212,1758994275347,-480.0,0.00036438,9]
[388054213,1758994275363,-480.0,0.00036438,9]
[388054214,1758994275377,-480.0,0.00036438,9]
[388054215,1758994275393,-639.55,0.00036438,9]
[388054216,1758994275408,-480.0,0.00036438,9]
[388054217,1758994275423,-480.0,0.00036438,7]
[388054218,1758994275440,-480.0,0.00036438,9]
[388054219,1758994275455,-480.0,0.00036438,9]
[388054220,1758994275470,-480.0,0.00036438,9]
[388054221,1758994275484,-480.0,0.00036438,9]
[388054222,1758994275499,-619.33,0.00036438,9]
[388054223,1758994275514,-480.0,0.00036438,9]
[388054224,1758994275529,-462.84295067,0.00036438,9]
[388054225,1758994275545,-480.0,0.00036438,9]
[388054226,1758994275561,-480.0,0.00036438,9]
[388054227,1758994275576,-1155.59,0.00036438,9]
[388054228,1758994275599,-480.0,0.00036438,9]
[388054229,1758994275615,-480.0,0.00036438,9]
[388054230,1758994275630,-857.23,0.00036438,9]
[388054231,1758994275650,-480.0,0.00036438,9]
[388054232,1758994275665,-480.0,0.00036438,9]
[388054233,1758994275681,-480.0,0.00036438,9]
[388054234,1758994275696,-312.17484777,0.00036438,9]
[388054235,1758994275711,-480.0,0.00036438,9]
[388054236,1758994275727,-480.0,0.00036438,9]
[388054237,1758994275742,-480.0,0.00036438,9]
[388054238,1758994275756,-480.0,0.00036438,9]
[388054239,1758994275772,-480.0,0.00036438,9]
[388054240,1758994275787,-480.0,0.00036438,9]
[388054241,1758994275802,-480.0,0.00036438,9]
[388054242,1758994275818,-480.0,0.00036438,9]
[388054243,1758994275833,-480.0,0.00036438,9]
[388054244,1758994275849,-480.0,0.00036438,9]
[388054245,1758994275864,-480.0,0.00036438,9]
[388054246,1758994275879,-480.0,0.00036438,9]
[388054247,1758994275893,-480.0,0.00036438,9]
[388054248,1758994275908,-480.0,0.00036438,9]
[388054249,1758994276068,-988.57,0.00036438,9]
[388054250,1758994276086,-213.91236064,0.00036438,9]
[388054251,1758994276096,-480.0,0.00036438,9]
[388054252,1758994276106,-480.0,0.00036438,9]
[388054253,1758994276115,-480.0,0.00036438,9]
[388054254,1758994276126,-480.0,0.00036438,9]
[388054255,1758994276136,-806.8,0.00036438,9]
[388054256,1758994276145,-480.0,0.00036438,9]
[388054257,1758994276155,-480.0,0.00036438,9]
[388054258,1758994276164,-328.13254449,0.00036438,9]
[388054259,1758994276174,-480.0,0.00036438,9]
[388054260,1758994276184,-480.0,0.00036438,9]
[388054261,1758994276194,-728.19,0.00036438,9]
[388054262,1758994276204,-480.0,0.00036438,9]
[388054263,1758994276215,-1199.9,0.00036438,9]
[388054264,1758994276224,-521.83,0.00036438,9]
[388054265,1758994276234,-319.80741289,0.00036438,9]
[388054266,1758994276245,-934.81,0.00036438,9]
[388054267,1758994276254,-480.0,0.00036438,9]
[388054268,1758994276263,-480.0,0.00036438,9]
[388054269,1758994276273,-671.16,0.00036438,9]
[388054270,1758994276283,-844.89,0.00036438,9]
[388054271,1758994276292,-480.0,0.00036438,9]
[388054272,1758994276301,-509.05051891,0.00036438,9]
[388054273,1758994276311,-924.28,0.00036438,9]
[388054274,1758994276320,-480.0,0.00036438,9]
[388054275,1758994276329,-480.0,0.00036438,9]
[388054276,1758994276339,-1097.09,0.00036438,9]
[388054277,1758994276348,-480.0,0.00036438,9]
[388054278,1758994276357,-480.0,0.00036438,7]
[388054279,1758994276366,-480.0,0.00036438,9]
[388054280,1758994276376,-1092.41,0.00036438,9]
[388054281,1758994276386,-541.61,0.00036438,9]
[388054282,1758994276397,-2302.64,0.00036438,9]
[388054283,1758994276408,-700.03,0.00036438,9]
[388054284,1758994276418,-1242.26,0.00036438,9]
[388054285,1758994276430,-480.0,0.00036438,9]
[388054286,1758994276439,-480.0,0.00036438,9]
[388054287,1758994276449,-916.57,0.00036438,9]
[388054288,1758994276458,-480.0,0.00036438,9]
[388054289,1758994276467,-2930.19,0.00036438,9]
[388054290,1758994276476,-480.0,0.00036438,9]
[388054291,1758994276485,-480.0,0.00036438,9]
[388054292,1758994276494,-480.0,0.00036438,9]
[388054293,1758994276503,-480.0,0.00036438,9]
[388054294,1758994276512,-550.59902182,0.00036438,9]
[388054295,1758994276522,-881.1,0.00036438,9]
[388054296,1758994276531,-520.0,0.00036438,3]
[388054297,1758994276540,-480.0,0.00036438,9]
[388054298,1758994276549,-480.0,0.00036438,9]
[388054299,1758994276559,-480.0,0.00036438,9]
[388054300,1758994276568,-480.0,0.00036438,9]
[388054301,1758994276577,-480.0,0.00036438,9]
[388054302,1758994276588,-492.58408638,0.00036438,9]
[388054303,1758994276598,-922.29,0.00036438,9]
[388054304,1758994276607,-480.0,0.00036438,9]
[388054305,1758994276616,-480.0,0.00036438,9]
[388054306,1758994276625,-480.0,0.00036438,9]
[388054307,1758994276635,-1075.35,0.00036438,9]
[388054308,1758994276646,-1002.1,0.00036438,9]
[388054309,1758994276656,-614.74,0.00036438,9]
[388054310,1758994276665,-480.0,0.00036438,9]
[388054311,1758994276674,-1314.53,0.00036438,9]
[388054312,1758994276685,-1647.96,0.00036438,9]
[388054313,1758994276694,-480.0,0.00036438,9]
[388054314,1758994276704,-480.0,0.00036438,9]
[388054315,1758994276715,-480.0,0.00036438,9]
[388054316,1758994276724,-480.0,0.00036438,9]
[388054317,1758994276733,-480.0,0.00036438,9]
[388054318,1758994276742,-918.52,0.00036438,9]
[388054319,1758994276751,-541.29,0.00036438,9]
[388054320,1758994276761,-1637.11,0.00036438,9]
[388054321,1758994276770,-1000.0,0.00036438,9]
[388054322,1758994276779,-480.0,0.00036438,9]
[388054323,1758994276788,-480.0,0.00036438,9]
[388054324,1758994276798,-480.0,0.00036438,9]
[388054325,1758994276808,-480.0,0.00036438,9]
[388054326,1758994276817,-1335.18,0.00036438,9]
[388054327,1758994276827,-480.0,0.00036438,9]
[388054328,1758994276835,-480.0,0.00036438,9]
[388054329,1758994276845,-531.39,0.00036438,9]
[388054330,1758994276854,-711.96,0.00036438,9]
[388054331,1758994276863,-480.0,0.00036438,9]
[388054332,1758994276872,-1092.25,0.00036438,9]
[388054333,1758994276881,-480.0,0.00036438,9]
[388054334,1758994276891,-264.69339004,0.00036438,9]
[388054335,1758994276901,-480.0,0.00036438,9]
[388054336,1758994276910,-923.57,0.00036438,9]
[388054337,1758994276923,-480.0,0.00036438,9]
[388054338,1758994276932,-480.0,0.00036438,9]
[388054339,1758994276941,-480.0,0.00036438,9]
[388054340,1758994276950,-5451.79,0.00036438,9]
[388054341,1758994276959,-1083.01,0.00036438,9]
[388054342,1758994276969,-480.0,0.00036438,9]
[388054343,1758994276978,-1357.77,0.00036438,9]
[388054344,1758994276987,-480.0,0.00036438,9]
[388054345,1758994276996,-480.0,0.00036438,9]
[388054346,1758994277005,-1344.59,0.00036438,9]
[388054347,1758994277015,-480.0,0.00036438,9]
[388054348,1758994277024,-480.0,0.00036438,9]
[388054349,1758994277033,-480.0,0.00036438,9]
[388054350,1758994277042,-2678.73,0.00036438,9]
[388054351,1758994277051,-480.0,0.00036438,9]
[388054352,1758994277060,-702.0,0.00036438,9]
[388054353,1758994277069,-480.0,0.00036438,9]
[388054354,1758994277078,-480.0,0.00036438,9]
[388054355,1758994277087,-480.0,0.00036438,9]
[388054356,1758994277096,-543.96,0.00036438,9]
[388054357,1758994277106,-480.0,0.00036438,9]
[388054358,1758994277115,-480.0,0.00036438,9]
[388054359,1758994277124,-774.73,0.00036438,9]
[388054360,1758994277134,-480.0,0.00036438,9]
[388054361,1758994277143,-593.84,0.00036438,9]
[388054362,1758994277152,-480.0,0.00036438,9]
[388054363,1758994277161,-480.0,0.00036438,9]
[388054364,1758994277170,-1672.18,0.00036438,9]
[388054365,1758994277179,-3764.15,0.00036438,9]
[388054366,1758994277188,-480.0,0.00036438,9]
[388054367,1758994277197,-480.0,0.00036438,9]
[388054368,1758994277206,-824.17,0.00036438,9]
[388054369,1758994277215,-480.0,0.00036438,9]
[388054370,1758994277224,-480.0,0.00036438,9]
[388054371,1758994277234,-480.0,0.00036438,9]
[388054372,1758994277244,-1635.38,0.00036438,9]
[388054373,1758994277254,-480.0,0.00036438,9]
[388054374,1758994277263,-1641.95,0.00036438,9]
[388054375,1758994277272,-480.0,0.00036438,9]
[388054376,1758994277281,-2067.34,0.00036438,9]
[388054377,1758994277290,-480.0,0.00036438,9]
[388054378,1758994277299,-1427.52,0.00036438,9]
[388054379,1758994277309,-480.0,0.00036438,9]
[388054380,1758994277319,-405.10195605,0.00036438,9]
[388054381,1758994277328,-480.0,0.00036438,9]
[388054382,1758994277337,-480.0,0.00036438,9]
[388054383,1758994277347,-3405.97,0.00036438,9]
[388054384,1758994277356,-480.0,0.00036438,9]
[388054385,1758994277366,-567.76028023,0.00036438,9]
[388054386,1758994277376,-708.47,0.00036438,9]
[388054387,1758994277385,-634.2,0.00036438,9]
[388054388,1758994277395,-694.12,0.00036438,9]
[388054389,1758994277404,-2636.4,0.00036438,9]
[388054390,1758994277414,-480.0,0.00036438,9]
[388054391,1758994277423,-1654.9,0.00036438,9]
[388054392,1758994277433,-2287.25,0.00036438,9]
[388054393,1758994277442,-652.19,0.00036438,9]
[388054394,1758994277451,-480.0,0.00036438,9]
[388054395,1758994277460,-480.0,0.00036438,9]
[388054396,1758994277469,-3119.71,0.00036438,9]
[388054397,1758994277479,-480.0,0.00036438,9]
[388054398,1758994277488,-480.0,0.00036438,9]
[388054399,1758994277497,-480.0,0.00036438,9]
[388054400,1758994277506,-480.0,0.00036438,9]
[388054401,1758994277516,-480.0,0.00036438,9]
[388054402,1758994277525,-480.0,0.00036438,7]
[388054403,1758994277535,-487.8,0.00036438,9]
[388054404,1758994277545,-203.42179496,0.00036438,9]
[388054405,1758994277556,-480.0,0.00036438,9]
[388054406,1758994277566,-1602.93,0.00036438,9]
[388054407,1758994277575,-1094.7,0.00036438,9]
[388054408,1758994277584,-509.65,0.00036438,9]
[388054409,1758994277594,-514.65,0.00036438,9]
[388054410,1758994277603,-480.0,0.00036438,9]
[388054411,1758994277613,-387.04587644,0.00036438,9]
[388054412,1758994277623,-1950.93,0.00036438,9]
[388054413,1758994277633,-480.0,0.00036438,9]
[388054414,1758994277645,-480.0,0.00036438,9]
[388054415,1758994277654,-480.0,0.00036438,9]
[388054416,1758994277663,-553.38,0.00036438,9]
[388054417,1758994277672,-480.0,0.00036438,9]
[388054418,1758994277683,-480.0,0.00036438,9]
[388054419,1758994277693,-480.0,0.00036438,9]
[388054420,1758994277703,-480.0,0.00036438,9]
[388054421,1758994277712,-480.0,0.00036438,9]
[388054422,1758994277723,-943.83,0.00036438,9]
[388054423,1758994277732,-480.0,0.00036438,9]
[388054424,1758994277742,-858.06,0.00036438,9]
[388054425,1758994277751,-480.0,0.00036438,9]
[388054426,1758994277760,-634.09,0.00036438,9]
[388054427,1758994277769,-1169.77,0.00036438,9]
[388054428,1758994277779,-480.0,0.00036438,9]
[388054429,1758994277788,-426.29477056,0.00036438,9]
[388054430,1758994277798,-633.36,0.00036438,9]
[388054431,1758994277807,-480.0,0.00036438,9]
[388054432,1758994277816,-2365.78,0.00036438,9]
[388054433,1758994277826,-480.0,0.00036438,9]
[388054434,1758994277835,-480.0,0.00036438,9]
[388054435,1758994277844,-480.0,0.00036438,9]
[388054436,1758994277854,-480.0,0.00036438,9]
[388054437,1758994277864,-480.0,0.00036438,9]
[388054438,1758994277874,-814.78,0.00036438,9]
[388054439,1758994277883,-480.0,0.00036438,9]
[388054440,1758994277893,-640.81,0.00036438,9]
[388054441,1758994277902,-908.9,0.00036438,9]
[388054442,1758994277912,-480.0,0.00036438,9]
[388054443,1758994277922,-732.25,0.00036438,9]
[388054444,1758994277932,-545.09,0.00036438,9]
[388054445,1758994277941,-480.0,0.00036438,9]
[388054446,1758994277951,-484.89813914,0.00036438,9]
[388054447,1758994277960,-1247.12,0.00036438,9]
[388054448,1758994277969,-480.0,0.00036438,9]
[388054449,1758994277979,-480.0,0.00036438,9]
[388054450,1758994277988,-480.0,0.00036438,9]
[388054451,1758994277998,-480.0,0.00036438,9]
[388054452,1758994278007,-595.73665172,0.00036438,9]
[388054453,1758994278017,-480.0,0.00036438,9]
[388054454,1758994278026,-480.0,0.00036438,9]
[388054455,1758994278035,-480.0,0.00036438,9]
[388054456,1758994278045,-480.0,0.00036438,9]
[388054457,1758994278054,-480.0,0.00036438,9]
[388054458,1758994278064,-480.0,0.00036438,9]
[388054459,1758994278074,-480.0,0.00036438,9]
[388054460,1758994278083,-480.0,0.00036438,9]
[388054461,1758994278093,-480.0,0.00036438,9]
[388054462,1758994278102,-480.0,0.00036438,9]
[388054463,1758994278112,-480.0,0.00036438,9]
[388054464,1758994278121,-283.59275007,0.00036438,9]
[388054465,1758994278131,-480.0,0.00036438,9]
[388054466,1758994278140,-556.57683663,0.00036438,9]
[388054467,1758994278150,-480.0,0.00036438,9]
[388054468,1758994278161,-1220.21,0.00036438,9]
[388054469,1758994278171,-480.0,0.00036438,9]
[388054470,1758994278181,-480.0,0.00036438,9]
[388054471,1758994278190,-483.34898148,0.00036438,9]
[388054472,1758994278199,-694.24,0.00036438,9]
[388054473,1758994278208,-480.0,0.00036438,9]
[388054474,1758994278218,-480.0,0.00036438,9]
[388054475,1758994278227,-480.0,0.00036438,9]
[388054476,1758994278236,-480.0,0.00036438,9]
[388054477,1758994278245,-480.0,0.00036438,9]
[388054478,1758994278376,-480.0,0.00036438,9]
[388054479,1758994278387,-480.0,0.00036438,9]
[388054480,1758994278399,-480.0,0.00036438,9]
[388054481,1758994278409,-480.0,0.00036438,9]
[388054482,1758994278418,-559.05,0.00036438,9]
[388054483,1758994278430,-480.0,0.00036438,9]
[388054484,1758994278440,-3248.1,0.00036438,9]
[388054485,1758994278449,-480.0,0.00036438,9]
[388054486,1758994278459,-673.8,0.00036438,9]
[388054487,1758994278468,-480.0,0.00036438,9]
[388054488,1758994278478,-480.0,0.00036438,9]
[388054489,1758994278487,-480.0,0.00036438,9]
[388054490,1758994278498,-480.0,0.00036438,9]
[388054491,1758994278508,-480.0,0.00036438,9]
[388054492,1758994278517,-579.8,0.00036438,9]
[388054493,1758994278527,-1466.3,0.00036438,9]
[388054494,1758994278535,-2409.52,0.00036438,9]
[388054495,1758994278545,-583.63,0.00036438,9]
[388054496,1758994278555,-480.0,0.00036438,9]
[388054497,1758994278564,-1295.32,0.00036438,9]
[388054498,1758994278574,-480.0,0.00036438,9]
[388054499,1758994278583,-480.0,0.00036438,9]
[388054500,1758994278593,-480.0,0.00036438,9]
[388054501,1758994278603,-1635.5,0.00036438,9]
[388054502,1758994278612,-480.0,0.00036438,9]
[388054503,1758994278622,-480.0,0.00036438,9]
[388054504,1758994278632,-773.73,0.00036438,9]
[388054505,1758994278650,-819.06,0.00036438,9]
[388054506,1758994278659,-481.13028441,0.00036438,9]
[388054507,1758994278669,-480.0,0.00036438,9]
[388054508,1758994278680,-895.09,0.00036438,9]
[388054509,1758994278692,-298.84,0.00036438,9]
[388054510,1758994278702,-485.44095933,0.00036438,9]
[388054511,1758994278717,-480.0,0.00036438,9]
[388054512,1758994278726,-1762.78,0.00036438,9]
[388054513,1758994278736,-480.0,0.00036438,9]
[388054514,1758994278745,-480.0,0.00036438,9]
[388054515,1758994278754,-1913.8,0.00036438,9]
[388054516,1758994278763,-480.0,0.00036438,9]
[388054517,1758994278773,-480.0,0.00036438,9]
[388054518,1758994278783,-2365.15,0.00036438,9]
[388054519,1758994278792,-1077.66,0.00036438,9]
[388054520,1758994278801,-3621.43,0.00036438,9]
[388054521,1758994278811,-480.0,0.00036438,9]
[388054522,1758994278820,-480.0,0.00036438,9]
[388054523,1758994278830,-480.0,0.00036438,9]
[388054524,1758994278839,-480.0,0.00036438,9]
[388054525,1758994278849,-569.51,0.00036438,9]
[388054526,1758994278859,-783.09,0.00036438,9]
[388054527,1758994278869,-480.0,0.00036438,9]
[388054528,1758994278879,-5851.91,0.00036438,9]
[388054529,1758994278888,-480.0,0.00036438,9]
[388054530,1758994278898,-3217.73,0.00036438,9]
[388054531,1758994278907,-1417.32,0.00036438,9]
[388054532,1758994278916,-2376.82,0.00036438,9]
[388054533,1758994278926,-785.41,0.00036438,9]
[388054534,1758994278935,-480.0,0.00036438,9]
[388054535,1758994278944,-480.0,0.00036438,9]
[388054536,1758994278953,-1530.06,0.00036438,9]
[388054537,1758994278963,-480.0,0.00036438,9]
[388054538,1758994278972,-480.0,0.00036438,9]
[388054539,1758994278982,-2125.03,0.00036438,9]
[388054540,1758994278991,-480.0,0.00036438,9]
[388054541,1758994279001,-480.0,0.00036438,9]
[388054542,1758994279010,-753.61,0.00036438,9]
[388054543,1758994279020,-662.5,0.00036438,9]
[388054544,1758994279030,-480.0,0.00036438,9]
[388054545,1758994279039,-592.73162535,0.00036438,9]
[388054546,1758994279048,-480.0,0.00036438,9]
[388054547,1758994279058,-480.0,0.00036438,9]
[388054548,1758994279067,-480.0,0.00036438,9]
[388054549,1758994279076,-1721.27,0.00036438,9]
[388054550,1758994279086,-611.21,0.00036438,9]
[388054551,1758994279095,-637.19,0.00036438,9]
[388054552,1758994279105,-3545.61,0.00036438,9]
[388054553,1758994279115,-11763.28,0.00036438,9]
[388054554,1758994279124,-480.0,0.00036438,9]
[388054555,1758994279134,-1271.8,0.00036438,9]
[388054556,1758994279144,-1408.28,0.00036438,9]
[388054557,1758994279154,-11816.93,0.00036438,9]
[388054558,1758994279164,-2708.81,0.00036438,9]
[388054559,1758994279173,-3808.87,0.00036438,9]
[388054560,1758994279183,-480.0,0.00036438,9]
[388054561,1758994279193,-480.0,0.00036438,9]
[388054562,1758994279202,-3600.11,0.00036438,9]
[388054563,1758994279212,-480.0,0.00036438,9]
[388054564,1758994279222,-720.5,0.00036438,9]
[388054565,1758994279232,-480.0,0.00036438,9]
[388054566,1758994279241,-480.0,0.00036438,9]
[388054567,1758994279250,-480.0,0.00036438,9]
[388054568,1758994279259,-5256.05,0.00036438,9]
[388054569,1758994279270,-480.0,0.00036438,9]
[388054570,1758994279279,-480.0,0.00036438,9]
[388054571,1758994279289,-480.0,0.00036438,9]
[388054572,1758994279298,-490.17495306,0.00036438,9]
[388054573,1758994279308,-480.0,0.00036438,9]
[388054574,1758994279319,-480.0,0.00036438,7]
[388054575,1758994279328,-1065.2,0.00036438,9]
[388054576,1758994279338,-7261.54,0.00036438,3]
[388054577,1758994279347,-480.0,0.00036438,9]
[388054578,1758994279356,-7281.49,0.00036438,9]
[388054579,1758994279366,-5503.8,0.00036438,9]
[388054580,1758994279375,-480.0,0.00036438,9]
[388054581,1758994279385,-4195.5,0.00036438,9]
[388054582,1758994279394,-480.0,0.00036438,9]
[388054583,1758994279404,-2557.08,0.00036438,9]
[388054584,1758994279413,-713.43,0.00036438,9]
[388054585,1758994279423,-595.32,0.00036438,9]
[388054586,1758994279432,-1395.04,0.00036438,9]
[388054587,1758994279442,-480.0,0.00036438,9]
[388054588,1758994279451,-1343.26,0.00036438,9]
[388054589,1758994279462,-480.0,0.00036438,9]
[388054590,1758994279471,-3339.87,0.00036438,9]
[388054591,1758994279480,-24192.44,0.00036438,9]
[388054592,1758994279490,-553.86445151,0.00036438,9]
[388054593,1758994279500,-660.49,0.00036438,9]
[388054594,1758994279510,-480.0,0.00036438,9]
[388054595,1758994279520,-5132.79,0.00036438,9]
[388054596,1758994279529,-2250.62,0.00036438,9]
[388054597,1758994279541,-480.0,0.00036438,9]
[388054598,1758994279551,-480.0,0.00036438,9]
[388054599,1758994279560,-480.0,0.00036438,9]
[388054600,1758994279570,-480.0,0.00036438,9]
[388054601,1758994279580,-501.78,0.00036438,9]
[388054602,1758994279590,-480.0,0.00036438,9]
[388054603,1758994279600,-4314.54,0.00036438,9]
[388054604,1758994279610,-3924.9,0.00036438,9]
[388054605,1758994279620,-557.99,0.00036438,9]
[388054606,1758994279629,-342.66835777,0.00036438,9]
[388054607,1758994279642,-480.0,0.00036438,9]
[388054608,1758994279652,-910.08,0.00036438,9]
[388054609,1758994279662,-873.81,0.00036438,9]
[388054610,1758994279671,-159.6437741,0.00036438,9]
[388054611,1758994279681,-5902.52,0.00036438,9]
[388054612,1758994279691,-655.62,0.00036438,9]
[388054613,1758994279701,-1046.33,0.00036438,9]
[388054614,1758994279711,-486.86,0.00036438,9]
[388054615,1758994279722,-480.0,0.00036438,9]
[388054616,1758994279731,-2948.89,0.00036438,9]
[388054617,1758994279741,-480.0,0.00036438,9]
[388054618,1758994279751,-480.0,0.00036438,9]
[388054619,1758994279760,-480.0,0.00036438,9]
[388054620,1758994279769,-1394.0,0.00036438,9]
[388054621,1758994279779,-781.94,0.00036438,9]
[388054622,1758994279789,-651.68,0.00036438,9]
[388054623,1758994279798,-608.92,0.00036438,9]
[388054624,1758994279807,-480.0,0.00036438,9]